[Event "Late-Titled-Tuesday-Blitz-March-12-2024"]
[Site "Chess.com"]
[Date "2024.03.12"]
[Round "11"]
[White "IranianCheetah"]
[Black "FMYiLiu"]
[Result "0-1"]
[WhiteElo "2367"]
[BlackElo "2485"]
[TimeControl "180+1"]
[EndTime "16:02:59 PDT"]
[Termination "FMYiLiu won on time"]

1. e4 {[%clk 0:03:00.9]} 1... e6 {[%clk 0:03:00.5]} 2. d4 {[%clk 0:03:00.7]}
2... d5 {[%clk 0:03:01.2]} 3. Nd2 {[%clk 0:03:01.3]} 3... c5 {[%clk 0:03:00.9]}
4. Ngf3 {[%clk 0:02:55.3]} 4... cxd4 {[%clk 0:03:00.8]} 5. exd5 {[%clk
0:02:53.7]} 5... Qxd5 {[%clk 0:03:00.4]} 6. Bc4 {[%clk 0:02:53.9]} 6... Qd7
{[%clk 0:03:01.1]} 7. O-O {[%clk 0:02:54.8]} 7... Nc6 {[%clk 0:02:58.9]} 8. Nb3
{[%clk 0:02:53.9]} 8... a6 {[%clk 0:02:59.5]} 9. Nbxd4 {[%clk 0:02:53.8]} 9...
Nxd4 {[%clk 0:03:00.4]} 10. Nxd4 {[%clk 0:02:54.5]} 10... Qc7 {[%clk 0:03:01]}
11. Qe2 {[%clk 0:02:50.3]} 11... Bd6 {[%clk 0:03:00.7]} 12. h3 {[%clk
0:02:45.5]} 12... Ne7 {[%clk 0:03:01.2]} 13. Bg5 {[%clk 0:02:41.1]} 13... O-O
{[%clk 0:02:58.7]} 14. Rad1 {[%clk 0:02:38.1]} 14... Ng6 {[%clk 0:02:52.4]} 15.
c3 {[%clk 0:02:25.9]} 15... b5 {[%clk 0:02:43]} 16. Bxb5 {[%clk 0:01:54.7]}
16... axb5 {[%clk 0:02:43.9]} 17. Nxb5 {[%clk 0:01:55.2]} 17... Bh2+ {[%clk
0:02:44.5]} 18. Kh1 {[%clk 0:01:55.7]} 18... Qb8 {[%clk 0:02:45.4]} 19. g3
{[%clk 0:01:18]} 19... Ba6 {[%clk 0:02:45.2]} 20. c4 {[%clk 0:01:15.1]} 20...
Bxb5 {[%clk 0:02:41.3]} 21. cxb5 {[%clk 0:01:14.7]} 21... Bxg3 {[%clk
0:02:40.6]} 22. fxg3 {[%clk 0:01:14.5]} 22... Qxg3 {[%clk 0:02:41.5]} 23. Qg2
{[%clk 0:01:02.3]} 23... Qxg2+ {[%clk 0:02:41.7]} 24. Kxg2 {[%clk 0:01:02.3]}
24... Rxa2 {[%clk 0:02:42.6]} 25. Rf2 {[%clk 0:00:56.2]} 25... f6 {[%clk
0:02:42.6]} 26. Be3 {[%clk 0:00:49.1]} 26... Ne5 {[%clk 0:02:33.1]} 27. b4
{[%clk 0:00:26.4]} 27... Nc4 {[%clk 0:02:29.9]} 28. Bc5 {[%clk 0:00:23.7]} 28...
Rxf2+ {[%clk 0:02:26.4]} 29. Kxf2 {[%clk 0:00:24.6]} 29... Rb8 {[%clk
0:02:25.7]} 30. Rc1 {[%clk 0:00:13.3]} 30... Ne5 {[%clk 0:02:25.5]} 31. Ke3
{[%clk 0:00:09.4]} 31... Rxb5 {[%clk 0:02:24.6]} 32. Ra1 {[%clk 0:00:08.3]}
32... Nc6 {[%clk 0:02:22.1]} 33. Ra8+ {[%clk 0:00:07.1]} 33... Kf7 {[%clk
0:02:22.6]} 34. Ra4 {[%clk 0:00:05.6]} 34... e5 {[%clk 0:02:22.8]} 35. Kd3
{[%clk 0:00:05.7]} 35... Rb7 {[%clk 0:02:10.6]} 36. Kc4 {[%clk 0:00:06.6]} 36...
Nb8 {[%clk 0:02:07.2]} 37. b5 {[%clk 0:00:06.3]} 37... Nd7 {[%clk 0:02:07.8]}
38. Ra7 {[%clk 0:00:05.7]} 38... Rxa7 {[%clk 0:02:07]} 39. Bxa7 {[%clk
0:00:06.6]} 39... Ke6 {[%clk 0:02:04.4]} 40. b6 {[%clk 0:00:03.8]} 40... Kd6
{[%clk 0:02:00.4]} 41. Kb5 {[%clk 0:00:02.9]} 41... h5 {[%clk 0:01:45.2]} 42. b7
{[%clk 0:00:02.7]} 42... Kc7 {[%clk 0:01:45.2]} 43. Ka6 {[%clk 0:00:01.7]} 43...
e4 {[%clk 0:01:37.8]} 0-1

[Event "Late-Titled-Tuesday-Blitz-March-12-2024"]
[Site "Chess.com"]
[Date "2024.03.12"]
[Round "11"]
[White "Vadim_Galchenko"]
[Black "cthulhuuu"]
[Result "1-0"]
[WhiteElo "2615"]
[BlackElo "2437"]
[TimeControl "180+1"]
[EndTime "16:03:03 PDT"]
[Termination "Vadim_Galchenko won on time"]

1. e4 {[%clk 0:03:00.9]} 1... d6 {[%clk 0:02:59.3]} 2. d4 {[%clk 0:03:00.9]}
2... Nf6 {[%clk 0:02:59.4]} 3. Nc3 {[%clk 0:03:01.1]} 3... c6 {[%clk 0:02:59.9]}
4. f3 {[%clk 0:03:00.6]} 4... b5 {[%clk 0:03:00]} 5. Be3 {[%clk 0:03:00.6]} 5...
e5 {[%clk 0:03:00.3]} 6. Qd2 {[%clk 0:02:59.5]} 6... Be7 {[%clk 0:03:01]} 7.
O-O-O {[%clk 0:02:56.8]} 7... b4 {[%clk 0:02:56.2]} 8. Nce2 {[%clk 0:02:55.5]}
8... a5 {[%clk 0:02:56]} 9. g4 {[%clk 0:02:54.9]} 9... O-O {[%clk 0:02:55.8]}
10. Ng3 {[%clk 0:02:53.2]} 10... exd4 {[%clk 0:02:45.7]} 11. Bxd4 {[%clk
0:02:50.6]} 11... c5 {[%clk 0:02:45.4]} 12. Be3 {[%clk 0:02:47.8]} 12... Nc6
{[%clk 0:02:40.8]} 13. g5 {[%clk 0:02:45]} 13... Ne8 {[%clk 0:02:14.9]} 14. h4
{[%clk 0:02:40.7]} 14... Be6 {[%clk 0:02:14.8]} 15. Kb1 {[%clk 0:02:39.6]} 15...
c4 {[%clk 0:02:10.1]} 16. f4 {[%clk 0:02:23.3]} 16... c3 {[%clk 0:02:08.3]} 17.
Qf2 {[%clk 0:02:19.9]} 17... a4 {[%clk 0:01:56.2]} 18. f5 {[%clk 0:02:19]} 18...
Bxa2+ {[%clk 0:01:56.3]} 19. Kxa2 {[%clk 0:02:19.3]} 19... b3+ {[%clk
0:01:51.4]} 20. Kb1 {[%clk 0:02:14.1]} 20... Nb4 {[%clk 0:01:47.4]} 21. Bd3
{[%clk 0:01:59.2]} 21... a3 {[%clk 0:01:35]} 22. bxc3 {[%clk 0:01:29]} 22... a2+
{[%clk 0:01:32.2]} 23. Ka1 {[%clk 0:01:26.6]} 23... b2+ {[%clk 0:01:05.9]} 24.
Kxb2 {[%clk 0:01:26.5]} 24... Qa5 {[%clk 0:01:02.1]} 25. N1e2 {[%clk 0:01:25.9]}
25... Nxd3+ {[%clk 0:00:28.1]} 26. cxd3 {[%clk 0:01:23.1]} 26... Rb8+ {[%clk
0:00:23.9]} 27. Ka1 {[%clk 0:01:21.3]} 27... Qa3 {[%clk 0:00:24.1]} 28. Rd2
{[%clk 0:00:57.6]} 1-0

[Event "Late-Titled-Tuesday-Blitz-March-12-2024"]
[Site "Chess.com"]
[Date "2024.03.12"]
[Round "11"]
[White "baki83"]
[Black "LikeWater"]
[Result "1-0"]
[WhiteElo "2839"]
[BlackElo "2685"]
[TimeControl "180+1"]
[EndTime "16:03:16 PDT"]
[Termination "baki83 won by resignation"]

1. e4 {[%clk 0:03:00.9]} 1... c5 {[%clk 0:02:56.9]} 2. Nf3 {[%clk 0:02:54]} 2...
a6 {[%clk 0:02:56.5]} 3. c3 {[%clk 0:02:53.8]} 3... d5 {[%clk 0:02:55.8]} 4.
exd5 {[%clk 0:02:52.7]} 4... Qxd5 {[%clk 0:02:56.7]} 5. d4 {[%clk 0:02:52.8]}
5... e6 {[%clk 0:02:56.8]} 6. Bd3 {[%clk 0:02:47.9]} 6... Nf6 {[%clk 0:02:52.2]}
7. O-O {[%clk 0:02:47.4]} 7... Nbd7 {[%clk 0:02:47.2]} 8. Re1 {[%clk 0:02:46.5]}
8... Be7 {[%clk 0:02:45.2]} 9. Bf4 {[%clk 0:02:37.6]} 9... O-O {[%clk
0:02:40.8]} 10. c4 {[%clk 0:02:35.9]} 10... Qc6 {[%clk 0:02:38.6]} 11. d5 {[%clk
0:02:36.1]} 11... Qb6 {[%clk 0:02:33.9]} 12. Qc2 {[%clk 0:02:21]} 12... Bd6
{[%clk 0:02:22.5]} 13. Bxd6 {[%clk 0:02:15.1]} 13... Qxd6 {[%clk 0:02:23.4]} 14.
dxe6 {[%clk 0:02:14.4]} 14... fxe6 {[%clk 0:02:23.7]} 15. Nc3 {[%clk 0:02:05.8]}
15... h6 {[%clk 0:02:13.6]} 16. Rad1 {[%clk 0:02:04.4]} 16... Qc6 {[%clk
0:02:05.9]} 17. Be4 {[%clk 0:01:14.6]} 17... Qc7 {[%clk 0:02:02.4]} 18. h3
{[%clk 0:00:53]} 18... Nb8 {[%clk 0:01:53.3]} 19. Ne5 {[%clk 0:00:47.6]} 19...
Nc6 {[%clk 0:01:38]} 20. Bxc6 {[%clk 0:00:47.3]} 20... bxc6 {[%clk 0:01:38.9]}
21. Na4 {[%clk 0:00:41.8]} 21... Qe7 {[%clk 0:01:27.5]} 22. Ng6 {[%clk 0:00:34]}
22... Qc7 {[%clk 0:01:25.6]} 23. Nxf8 {[%clk 0:00:33.4]} 23... Kxf8 {[%clk
0:01:26.5]} 24. Nxc5 {[%clk 0:00:32.6]} 24... Qe7 {[%clk 0:01:26.2]} 25. Nd3
{[%clk 0:00:30.1]} 25... c5 {[%clk 0:01:20.7]} 26. Qc3 {[%clk 0:00:22.2]} 26...
Bb7 {[%clk 0:01:19.7]} 27. Nf4 {[%clk 0:00:20.8]} 27... Kg8 {[%clk 0:01:19.4]}
28. Rxe6 {[%clk 0:00:19.6]} 28... Qc7 {[%clk 0:01:19.6]} 29. Qe3 {[%clk
0:00:18.4]} 29... Rd8 {[%clk 0:01:15.9]} 30. Re1 {[%clk 0:00:17.2]} 30... Rd4
{[%clk 0:00:59]} 31. Rxf6 {[%clk 0:00:16.5]} 31... Re4 {[%clk 0:00:54.9]} 32.
Rf8+ {[%clk 0:00:15.4]} 32... Kxf8 {[%clk 0:00:44.1]} 33. Qxe4 {[%clk
0:00:14.6]} 33... Bxe4 {[%clk 0:00:41.3]} 34. Ne6+ {[%clk 0:00:14.5]} 1-0

[Event "Late-Titled-Tuesday-Blitz-March-12-2024"]
[Site "Chess.com"]
[Date "2024.03.12"]
[Round "11"]
[White "Practical-Play"]
[Black "LornerAcosta"]
[Result "1-0"]
[WhiteElo "2485"]
[BlackElo "2600"]
[TimeControl "180+1"]
[EndTime "16:03:16 PDT"]
[Termination "Practical-Play won on time"]

1. e4 {[%clk 0:03:00.9]} 1... c5 {[%clk 0:02:48.2]} 2. Nc3 {[%clk 0:02:58.6]}
2... Nc6 {[%clk 0:02:47.9]} 3. Nf3 {[%clk 0:02:58]} 3... e6 {[%clk 0:02:48]} 4.
d4 {[%clk 0:02:55.3]} 4... cxd4 {[%clk 0:02:48.9]} 5. Nxd4 {[%clk 0:02:55.9]}
5... Nf6 {[%clk 0:02:49.2]} 6. Qd3 {[%clk 0:02:54.9]} 6... Bb4 {[%clk
0:02:47.9]} 7. Bd2 {[%clk 0:02:21.8]} 7... d5 {[%clk 0:02:43.7]} 8. exd5 {[%clk
0:02:14.8]} 8... exd5 {[%clk 0:02:39.6]} 9. Be2 {[%clk 0:02:07.4]} 9... O-O
{[%clk 0:02:36.8]} 10. O-O {[%clk 0:02:07.8]} 10... Ne5 {[%clk 0:02:35.1]} 11.
Qg3 {[%clk 0:02:06.2]} 11... Ng6 {[%clk 0:02:13.8]} 12. Bf3 {[%clk 0:02:05.4]}
12... Bd6 {[%clk 0:02:08]} 13. Qg5 {[%clk 0:01:59.1]} 13... h6 {[%clk
0:02:00.1]} 14. Qe3 {[%clk 0:01:57.9]} 14... a6 {[%clk 0:02:00.4]} 15. h3 {[%clk
0:01:50.4]} 15... Re8 {[%clk 0:01:50.2]} 16. Qd3 {[%clk 0:01:48.2]} 16... Ne5
{[%clk 0:01:49]} 17. Qe2 {[%clk 0:01:48.3]} 17... Bc5 {[%clk 0:01:17.7]} 18. Nb3
{[%clk 0:01:45.5]} 18... Bb6 {[%clk 0:01:14.8]} 19. Be3 {[%clk 0:01:29.1]} 19...
Nxf3+ {[%clk 0:00:50.1]} 20. Qxf3 {[%clk 0:01:28.3]} 20... Bxe3 {[%clk
0:00:49.3]} 21. fxe3 {[%clk 0:01:29.2]} 21... Be6 {[%clk 0:00:45.7]} 22. Nd4
{[%clk 0:01:23.7]} 22... Qb6 {[%clk 0:00:43.8]} 23. Na4 {[%clk 0:01:19.4]} 23...
Qb4 {[%clk 0:00:40.4]} 24. b3 {[%clk 0:01:15.5]} 24... Bd7 {[%clk 0:00:39.8]}
25. Nb2 {[%clk 0:01:12.9]} 25... Bb5 {[%clk 0:00:24.9]} 26. Rf2 {[%clk
0:01:06.6]} 26... Rac8 {[%clk 0:00:19.4]} 27. Rd1 {[%clk 0:00:55]} 27... Qa5
{[%clk 0:00:14.7]} 28. a4 {[%clk 0:00:52.9]} 28... Bc6 {[%clk 0:00:14.1]} 29.
Nd3 {[%clk 0:00:48.3]} 29... Qc7 {[%clk 0:00:13.6]} 30. Rdf1 {[%clk 0:00:45.6]}
30... Rcd8 {[%clk 0:00:11.3]} 31. Nf5 {[%clk 0:00:44.6]} 31... Ne4 {[%clk
0:00:10.5]} 32. Qg4 {[%clk 0:00:43.7]} 32... g5 {[%clk 0:00:01.3]} 33. Nxh6+
{[%clk 0:00:43.6]} 1-0

[Event "Late-Titled-Tuesday-Blitz-March-12-2024"]
[Site "Chess.com"]
[Date "2024.03.12"]
[Round "11"]
[White "Byniolus"]
[Black "ATM622"]
[Result "1-0"]
[WhiteElo "2752"]
[BlackElo "2478"]
[TimeControl "180+1"]
[EndTime "16:03:17 PDT"]
[Termination "Byniolus won by resignation"]

1. g3 {[%clk 0:03:00.9]} 1... Nf6 {[%clk 0:02:56.3]} 2. d3 {[%clk 0:03:00.9]}
2... d5 {[%clk 0:02:55]} 3. c3 {[%clk 0:02:59.6]} 3... e5 {[%clk 0:02:54.7]} 4.
e3 {[%clk 0:02:59.7]} 4... Bd6 {[%clk 0:02:54]} 5. f3 {[%clk 0:03:00]} 5... O-O
{[%clk 0:02:53.6]} 6. b3 {[%clk 0:03:00.6]} 6... c5 {[%clk 0:02:53.8]} 7. a3
{[%clk 0:03:00.7]} 7... Nc6 {[%clk 0:02:53.8]} 8. Ne2 {[%clk 0:03:01.1]} 8... e4
{[%clk 0:02:53.5]} 9. dxe4 {[%clk 0:02:59.8]} 9... dxe4 {[%clk 0:02:52.9]} 10.
f4 {[%clk 0:03:00.5]} 10... Bg4 {[%clk 0:02:51]} 11. Bg2 {[%clk 0:02:59.5]}
11... Bc7 {[%clk 0:02:42.1]} 12. Qxd8 {[%clk 0:02:48]} 12... Raxd8 {[%clk
0:02:41]} 13. Nd2 {[%clk 0:02:48.9]} 13... Rfe8 {[%clk 0:02:37]} 14. h3 {[%clk
0:02:45.2]} 14... Bxe2 {[%clk 0:02:32.9]} 15. Kxe2 {[%clk 0:02:44.9]} 15... Rd3
{[%clk 0:02:29.8]} 16. Nxe4 {[%clk 0:02:29.4]} 16... Nxe4 {[%clk 0:02:29]} 17.
Kxd3 {[%clk 0:02:19.2]} 17... Nxg3 {[%clk 0:02:26]} 18. Rd1 {[%clk 0:01:58.9]}
18... Na5 {[%clk 0:02:21.2]} 19. Kc2 {[%clk 0:01:47.2]} 19... c4 {[%clk
0:02:15.5]} 20. bxc4 {[%clk 0:01:48.1]} 20... Nxc4 {[%clk 0:02:14.7]} 21. Rd7
{[%clk 0:01:33.8]} 21... Bb6 {[%clk 0:02:08.2]} 22. Bd5 {[%clk 0:01:13]} 22...
Rc8 {[%clk 0:02:06.9]} 23. Bxf7+ {[%clk 0:01:05.3]} 23... Kh8 {[%clk 0:02:06]}
24. Bxc4 {[%clk 0:01:03.3]} 24... Rxc4 {[%clk 0:02:05.4]} 25. a4 {[%clk
0:00:41.1]} 25... Ba5 {[%clk 0:01:59.5]} 26. Bb2 {[%clk 0:00:38.9]} 26... h6
{[%clk 0:01:55.9]} 27. Rxb7 {[%clk 0:00:20.9]} 27... Nf5 {[%clk 0:01:53.1]} 28.
Re1 {[%clk 0:00:17.9]} 28... Bb6 {[%clk 0:01:49.6]} 29. e4 {[%clk 0:00:16.1]}
29... Nd6 {[%clk 0:01:47.4]} 30. Rb8+ {[%clk 0:00:16.4]} 30... Kh7 {[%clk
0:01:47.1]} 31. e5 {[%clk 0:00:15.5]} 31... Nf5 {[%clk 0:01:46.3]} 32. e6 {[%clk
0:00:14.7]} 32... Bc5 {[%clk 0:01:41]} 33. Rc8 {[%clk 0:00:12.4]} 33... Ne7
{[%clk 0:01:37.1]} 34. Rc7 {[%clk 0:00:11]} 34... Nd5 {[%clk 0:01:32.8]} 35. Rd7
{[%clk 0:00:10.5]} 35... Ne7 {[%clk 0:01:27.2]} 36. Kb3 {[%clk 0:00:08.2]} 36...
Rxf4 {[%clk 0:01:20.8]} 37. Ba3 {[%clk 0:00:07.9]} 37... Bxa3 {[%clk 0:01:18]}
38. Kxa3 {[%clk 0:00:08.8]} 38... Ng6 {[%clk 0:01:10.3]} 39. e7 {[%clk
0:00:08.5]} 39... Nxe7 {[%clk 0:01:10]} 40. Rexe7 {[%clk 0:00:09.4]} 40... Rf3
{[%clk 0:01:10.3]} 41. Rxg7+ {[%clk 0:00:09.2]} 41... Kh8 {[%clk 0:01:10.8]} 42.
Kb3 {[%clk 0:00:07.6]} 42... Rxh3 {[%clk 0:01:06.5]} 43. Rge7 {[%clk 0:00:06.9]}
1-0

[Event "Late-Titled-Tuesday-Blitz-March-12-2024"]
[Site "Chess.com"]
[Date "2024.03.12"]
[Round "11"]
[White "Fandorine"]
[Black "Casablanca"]
[Result "1-0"]
[WhiteElo "2936"]
[BlackElo "2586"]
[TimeControl "180+1"]
[EndTime "16:03:21 PDT"]
[Termination "Fandorine won by checkmate"]

1. d4 {[%clk 0:03:00.9]} 1... Nf6 {[%clk 0:02:59.3]} 2. c4 {[%clk 0:03:01.5]}
2... e6 {[%clk 0:02:58.3]} 3. g4 {[%clk 0:03:02.1]} 3... Nxg4 {[%clk 0:02:58.3]}
4. e4 {[%clk 0:03:01.3]} 4... Nf6 {[%clk 0:02:50.8]} 5. e5 {[%clk 0:02:56.9]}
5... Ne4 {[%clk 0:02:43.3]} 6. Qe2 {[%clk 0:02:43]} 6... d5 {[%clk 0:02:33.1]}
7. Bg2 {[%clk 0:02:39.9]} 7... Bb4+ {[%clk 0:02:26.3]} 8. Kf1 {[%clk 0:02:36.2]}
8... c5 {[%clk 0:02:13.2]} 9. a3 {[%clk 0:02:30.8]} 9... Ba5 {[%clk 0:02:12.8]}
10. dxc5 {[%clk 0:02:26.2]} 10... Nxc5 {[%clk 0:02:10.3]} 11. b4 {[%clk
0:02:26.6]} 11... Nb3 {[%clk 0:02:10.5]} 12. bxa5 {[%clk 0:02:26.3]} 12... Nxa1
{[%clk 0:02:02.3]} 13. Qb2 {[%clk 0:02:25.2]} 13... Qxa5 {[%clk 0:01:31.8]} 14.
Qxa1 {[%clk 0:02:22.9]} 14... dxc4 {[%clk 0:01:31.2]} 15. Bd2 {[%clk 0:02:20.2]}
15... Qc7 {[%clk 0:01:29.2]} 16. Bb4 {[%clk 0:02:18.9]} 16... Bd7 {[%clk
0:01:14.8]} 17. Bd6 {[%clk 0:02:15.6]} 17... Qb6 {[%clk 0:01:15]} 18. Nc3 {[%clk
0:02:14.9]} 18... Bc6 {[%clk 0:01:15.2]} 19. Nf3 {[%clk 0:02:13.7]} 19... Nd7
{[%clk 0:01:13.4]} 20. Rg1 {[%clk 0:02:12.5]} 20... Nc5 {[%clk 0:01:11.4]} 21.
Ne1 {[%clk 0:02:10.5]} 21... Rg8 {[%clk 0:00:50.3]} 22. Qd1 {[%clk 0:01:58.3]}
22... O-O-O {[%clk 0:00:48.5]} 23. Bxc6 {[%clk 0:01:53.4]} 23... Qxc6 {[%clk
0:00:48.7]} 24. Qd4 {[%clk 0:01:53]} 24... Nb3 {[%clk 0:00:39.4]} 25. Qxa7
{[%clk 0:01:53.2]} 25... Nd2+ {[%clk 0:00:39.8]} 26. Ke2 {[%clk 0:01:51.7]}
26... Ne4 {[%clk 0:00:40.7]} 27. Nxe4 {[%clk 0:01:44.6]} 27... Qxe4+ {[%clk
0:00:40.4]} 28. Qe3 {[%clk 0:01:44.1]} 28... Qxe3+ {[%clk 0:00:32.8]} 29. Kxe3
{[%clk 0:01:45]} 29... b5 {[%clk 0:00:33.4]} 30. Nc2 {[%clk 0:01:43.3]} 30...
Kb7 {[%clk 0:00:33.8]} 31. Rb1 {[%clk 0:01:41.2]} 31... Ka6 {[%clk 0:00:29]} 32.
Nd4 {[%clk 0:01:36.8]} 32... Rb8 {[%clk 0:00:23.5]} 33. Bxb8 {[%clk 0:01:34.4]}
33... Rxb8 {[%clk 0:00:24.1]} 34. Kd2 {[%clk 0:01:29.5]} 34... Rb7 {[%clk
0:00:22.9]} 35. Kc3 {[%clk 0:01:28.4]} 35... Ka5 {[%clk 0:00:22.8]} 36. f4
{[%clk 0:01:27.5]} 36... g6 {[%clk 0:00:20.8]} 37. h4 {[%clk 0:01:26]} 37... h6
{[%clk 0:00:20.9]} 38. Rb4 {[%clk 0:01:25.3]} 38... Rb6 {[%clk 0:00:14.9]} 39.
Rb1 {[%clk 0:01:22.9]} 39... Rb7 {[%clk 0:00:14.9]} 40. Rb2 {[%clk 0:01:23.5]}
40... Rb6 {[%clk 0:00:15.4]} 41. Rb4 {[%clk 0:01:24]} 41... Rb7 {[%clk
0:00:15.9]} 42. a4 {[%clk 0:01:23.6]} 42... Ka6 {[%clk 0:00:06.5]} 43. axb5+
{[%clk 0:01:22.1]} 43... Kb6 {[%clk 0:00:06.9]} 44. Rxc4 {[%clk 0:01:22.4]}
44... Ra7 {[%clk 0:00:07.5]} 45. Rc6+ {[%clk 0:01:21.7]} 45... Kb7 {[%clk
0:00:08]} 46. Nb3 {[%clk 0:01:21.7]} 46... Ra2 {[%clk 0:00:06.7]} 47. Nc5+
{[%clk 0:01:21]} 47... Kb8 {[%clk 0:00:07.3]} 48. b6 {[%clk 0:01:18.8]} 48...
Rf2 {[%clk 0:00:06.7]} 49. Rc7 {[%clk 0:01:15.9]} 49... Rf3+ {[%clk 0:00:07.6]}
50. Kc4 {[%clk 0:01:15.6]} 50... Rxf4+ {[%clk 0:00:08]} 51. Kb5 {[%clk
0:01:16.3]} 51... Rf1 {[%clk 0:00:08.3]} 52. Na6+ {[%clk 0:01:15.9]} 52... Ka8
{[%clk 0:00:09]} 53. Ra7# {[%clk 0:01:16]} 1-0

[Event "Late-Titled-Tuesday-Blitz-March-12-2024"]
[Site "Chess.com"]
[Date "2024.03.12"]
[Round "11"]
[White "Zohid6"]
[Black "Malev212"]
[Result "1-0"]
[WhiteElo "2881"]
[BlackElo "2622"]
[TimeControl "180+1"]
[EndTime "16:03:26 PDT"]
[Termination "Zohid6 won by resignation"]

1. e4 {[%clk 0:03:00.9]} 1... g6 {[%clk 0:02:56.7]} 2. d4 {[%clk 0:03:00.7]}
2... Bg7 {[%clk 0:02:56.8]} 3. Nc3 {[%clk 0:03:01.3]} 3... c5 {[%clk 0:02:56.8]}
4. dxc5 {[%clk 0:03:01]} 4... Bxc3+ {[%clk 0:02:55.4]} 5. bxc3 {[%clk
0:03:01.7]} 5... Nf6 {[%clk 0:02:53.5]} 6. f3 {[%clk 0:03:00.5]} 6... Qa5 {[%clk
0:02:51.9]} 7. Ne2 {[%clk 0:03:00.3]} 7... Qxc5 {[%clk 0:02:46.5]} 8. Qd4 {[%clk
0:02:59.9]} 8... Qc7 {[%clk 0:02:28.1]} 9. Bf4 {[%clk 0:02:52.9]} 9... d6 {[%clk
0:02:27.5]} 10. Bh6 {[%clk 0:02:45.2]} 10... Nc6 {[%clk 0:02:25]} 11. Qd2 {[%clk
0:02:45.1]} 11... Be6 {[%clk 0:02:15.4]} 12. Nd4 {[%clk 0:02:41.7]} 12... Rc8
{[%clk 0:02:06.5]} 13. Bb5 {[%clk 0:02:12.2]} 13... Bd7 {[%clk 0:02:05.2]} 14.
O-O {[%clk 0:02:09.3]} 14... Nxd4 {[%clk 0:02:03.7]} 15. Bxd7+ {[%clk 0:02:09]}
15... Nxd7 {[%clk 0:02:01.7]} 16. cxd4 {[%clk 0:02:09.9]} 16... Nb6 {[%clk
0:01:53.7]} 17. Rac1 {[%clk 0:02:06.1]} 17... Nc4 {[%clk 0:01:53]} 18. Qf2
{[%clk 0:02:02.8]} 18... f6 {[%clk 0:01:51.9]} 19. f4 {[%clk 0:01:59.3]} 19...
Kf7 {[%clk 0:01:51.3]} 20. f5 {[%clk 0:01:54.3]} 20... Qa5 {[%clk 0:01:39.7]}
21. Rce1 {[%clk 0:01:53.1]} 21... Rhg8 {[%clk 0:01:36.4]} 22. Qh4 {[%clk
0:01:48.2]} 22... Ke8 {[%clk 0:01:23.4]} 23. Bc1 {[%clk 0:01:40.7]} 23... Kd7
{[%clk 0:01:20.8]} 24. Qxh7 {[%clk 0:01:33.7]} 24... Qc3 {[%clk 0:01:09]} 25.
fxg6 {[%clk 0:01:11.6]} 25... Qxd4+ {[%clk 0:01:08.2]} 26. Kh1 {[%clk
0:01:10.9]} 26... Rh8 {[%clk 0:00:58.3]} 27. Qf7 {[%clk 0:00:54.2]} 27... Ne5
{[%clk 0:00:57.5]} 28. Qb3 {[%clk 0:00:54.9]} 28... Nxg6 {[%clk 0:00:33.5]} 29.
Qxb7+ {[%clk 0:00:54.6]} 29... Rc7 {[%clk 0:00:30.1]} 30. Qb5+ {[%clk
0:00:54.1]} 30... Ke6 {[%clk 0:00:23.2]} 31. Bb2 {[%clk 0:00:40.9]} 31... Qc4
{[%clk 0:00:22.2]} 32. Qf5+ {[%clk 0:00:40.4]} 32... Kf7 {[%clk 0:00:21.3]} 33.
Bxf6 {[%clk 0:00:40.1]} 33... e6 {[%clk 0:00:16.6]} 34. Qg5 {[%clk 0:00:36.1]}
1-0

[Event "Late-Titled-Tuesday-Blitz-March-12-2024"]
[Site "Chess.com"]
[Date "2024.03.12"]
[Round "11"]
[White "KSho99"]
[Black "egnfanclub"]
[Result "0-1"]
[WhiteElo "2169"]
[BlackElo "2392"]
[TimeControl "180+1"]
[EndTime "16:03:29 PDT"]
[Termination "egnfanclub won on time"]

1. d4 {[%clk 0:02:48.1]} 1... d5 {[%clk 0:02:59.4]} 2. Nf3 {[%clk 0:02:46.5]}
2... Nf6 {[%clk 0:02:59.2]} 3. e3 {[%clk 0:02:46.3]} 3... e6 {[%clk 0:02:56.6]}
4. Bd3 {[%clk 0:02:45.9]} 4... c5 {[%clk 0:02:55]} 5. b3 {[%clk 0:02:44.5]} 5...
Nc6 {[%clk 0:02:55.3]} 6. Bb2 {[%clk 0:02:43.1]} 6... cxd4 {[%clk 0:02:55.3]} 7.
exd4 {[%clk 0:02:43]} 7... Bd6 {[%clk 0:02:54.5]} 8. O-O {[%clk 0:02:41.8]} 8...
O-O {[%clk 0:02:52.3]} 9. a3 {[%clk 0:02:41.9]} 9... Qc7 {[%clk 0:02:50.8]} 10.
Nbd2 {[%clk 0:02:34.8]} 10... e5 {[%clk 0:02:47.7]} 11. dxe5 {[%clk 0:02:32]}
11... Nxe5 {[%clk 0:02:48.6]} 12. Nxe5 {[%clk 0:02:31.5]} 12... Bxe5 {[%clk
0:02:49.5]} 13. Bxe5 {[%clk 0:02:31]} 13... Qxe5 {[%clk 0:02:50.4]} 14. Nf3
{[%clk 0:02:30.9]} 14... Qh5 {[%clk 0:02:50]} 15. h3 {[%clk 0:02:27.2]} 15...
Ne4 {[%clk 0:02:42.6]} 16. Re1 {[%clk 0:02:21.1]} 16... f5 {[%clk 0:02:24.7]}
17. c4 {[%clk 0:01:54.8]} 17... dxc4 {[%clk 0:01:59.8]} 18. Bxc4+ {[%clk
0:01:53.3]} 18... Kh8 {[%clk 0:02:00.1]} 19. Ne5 {[%clk 0:01:47.8]} 19... Qxd1
{[%clk 0:01:47.9]} 20. Raxd1 {[%clk 0:01:46.1]} 20... g6 {[%clk 0:01:39.9]} 21.
Nf7+ {[%clk 0:01:09.2]} 21... Kg7 {[%clk 0:01:39.5]} 22. Nd6 {[%clk 0:00:52.1]}
22... Nxd6 {[%clk 0:01:16.6]} 23. Rxd6 {[%clk 0:00:51.4]} 23... f4 {[%clk
0:01:02.3]} 24. Re7+ {[%clk 0:00:50.3]} 24... Kh6 {[%clk 0:01:01.9]} 25. Bd5
{[%clk 0:00:38.1]} 25... Rb8 {[%clk 0:00:56.8]} 26. h4 {[%clk 0:00:33.1]} 26...
a6 {[%clk 0:00:56.5]} 27. h5 {[%clk 0:00:15]} 27... b5 {[%clk 0:00:54.1]} 28.
hxg6 {[%clk 0:00:13.8]} 28... hxg6 {[%clk 0:00:53.9]} 29. Be4 {[%clk 0:00:06.4]}
29... Bf5 {[%clk 0:00:47.3]} 30. Bxf5 {[%clk 0:00:05.9]} 30... Rxf5 {[%clk
0:00:48.2]} 31. Ree6 {[%clk 0:00:06]} 31... Rg5 {[%clk 0:00:46]} 32. Rxa6 {[%clk
0:00:05.8]} 32... Rc8 {[%clk 0:00:45.4]} 33. f3 {[%clk 0:00:05.2]} 33... Rc1+
{[%clk 0:00:43.9]} 34. Kh2 {[%clk 0:00:04.1]} 34... Rc2 {[%clk 0:00:44.3]} 35.
Kg1 {[%clk 0:00:02.8]} 35... Rcxg2+ {[%clk 0:00:42.7]} 36. Kf1 {[%clk 0:00:03]}
36... Rb2 {[%clk 0:00:42.3]} 0-1